Cogmind - Beta 13 @@@ ROGUE MODE // 2024.07.31 @ 23:01:39 Player: weedlord420 Result: Destroyed by S-27 Virus with Autogun Performance ------------- Evolutions (0) 0 Regions Visited (3) 600 Robots Destroyed (30) 150 Value Destroyed (721) 721 Prototype IDs (1) 20 Alien Tech Used (0) 0 Bonus (-180) -180 TOTAL SCORE: 1311 Bonus ------- Friendly Fire -180 Cogmind --------- Core Integrity 0/250 Matter 300/300 Energy 44/300 System Corruption 1% Temperature Warm (150) Movement Treading (160) Location -7/Recycling Parts ------- > --- POWER (1+1) ------ Subdweller Power Source (fused) Subdweller Power Source (+) > --- PROPULSION (2) --- Light Treads Light Treads > --- UTILITY (2) ------ Medium Storage Unit Makeshift Light Armor Plating > --- WEAPON (2) ------- Powered Cannon > --- INVENTORY (10) --- Subdweller Power Source Light Treads Scrap Engine Medium Matter Pod (100) Light Armor Plating Light Armor Plating Barrage Gun Flail Peak State ------------ > --- POWER ------------ Subdweller Power Source Subdweller Power Source > --- PROPULSION ------- Light Treads Light Treads > --- UTILITY ---------- Medium Storage Unit Makeshift Light Armor Plating > --- WEAPON ----------- Powered Cannon > --- INVENTORY -------- Subdweller Power Source Light Treads Scrap Engine Medium Matter Pod Light Armor Plating Light Armor Plating Barrage Gun Flail [Rating: 27] Favorites ----------- Power Subdweller Power Source Engine Subdweller Power Source Power Core Light Nuclear Core Propulsion Light Treads Treads Light Treads Utility Medium Storage Unit Storage Medium Storage Unit Protection Medium Armor Plating Weapon Assault Rifle Energy Gun Subdweller Laser Energy Cannon Powered Cannon Ballistic Gun Assault Rifle Build | -11 -10 -10 -7 ------- Run | Yrd Mat Sub Rec Slots Evolved . | . . . . Power . | . . . . Propulsion . | . . . . Utility . | . . . . Weapon . | . . . . Parts Attached 22 | 6 7 9 . Power 4 | 1 1 2 . Engine 3 | 1 . 2 . Core 1 | . 1 . . Reactor . | . . . . Propulsion 6 | 2 3 1 . Treads 6 | 2 3 1 . Leg . | . . . . Wheel . | . . . . Hover . | . . . . Flight . | . . . . Utility 8 | 1 3 4 . Device . | . . . . Storage 2 | 1 1 . . Processor . | . . . . Hackware . | . . . . Protection 6 | . 2 4 . Artifact . | . . . . Weapon 4 | 2 . 2 . Energy Gun 1 | . . 1 . Energy Cannon 1 | . . 1 . Ballistic Gun 2 | 2 . . . Ballistic Cannon . | . . . . Launcher . | . . . . Special Weapon . | . . . . Impact Weapon . | . . . . Slashing Weapon . | . . . . Piercing Weapon . | . . . . Special Melee Weapon . | . . . . Unidentified Prototypes 1 | . . 1 . Parts Lost 6 | . . 6 . Power 1 | . . 1 . Propulsion 1 | . . 1 . Utility 4 | . . 4 . Weapon . | . . . . Highest Loss Streak 3 | . . 3 . To Critical Strikes . | . . . . Average Slot Usage (%) 95 | . 98 94 87 Engine 10 | . 4 15 25 Core 5 | . 9 1 . Treads 27 | . 28 26 25 Storage 13 | . 14 13 12 Protection 12 | . 12 13 12 Energy Gun 2 | . . 8 . Energy Cannon 2 | . . 3 12 Ballistic Gun 20 | . 28 11 . Naked Turns . | . . . . Heaviest Build 36 | 12 26 36 33 Greatest Support 40 | 40 40 40 40 Greatest Overweight (x) 1 | . . 1 . Average Overweight (x) . | . . . . Largest Inventory Capacity 10 | 8 10 10 10 Average Capacity 9 | 5 9 10 10 Most Carried 10 | 5 10 10 9 Average Carried 9 | 3 9 8 9 Final Capacity 10 | 8 10 10 10 Final Carried 10 | . 10 7 9 Class Distribution -------------------- 100% | Mutant Dominant Class ---------------- Mutant | -10/Materials Mutant | -10/Subcaves Mutant | -7/Recycling Resources | -11 -10 -10 -7 ----------- Run | Yrd Mat Sub Rec Matter Collected 888 | 175 539 174 . Remotely . | . . . . Salvage Created 975 | . 552 369 54 Parts 58 | . 36 19 3 Haulers Intercepted 2 | . 2 . . Recyclers Shooed 2 | . 1 . 1 Parts Field Recycled . | . . . . Retrieved Matter . | . . . . Parts Self-Destructed 10 | . . 10 . Prevented . | . . . . Kills | -11 -10 -10 -7 ------- Run | Yrd Mat Sub Rec Combat Hostiles Destroyed 18 | . 7 11 . Guns 12 | . 7 5 . Cannons 5 | . . 5 . Classes Destroyed 9 | . 6 3 . Worker 2 | . 2 . . Hauler 2 | . 2 . . Recycler 1 | . 1 . . Operator 1 | . 1 . . Turret 2 | . . 2 . Watcher 3 | . 3 . . Swarmer 4 | . . 4 . Grunt 10 | . 7 2 1 Subdweller 5 | . . 5 . Best Kill Streak 5 | . 5 5 . Combat Bots Only 4 | . 2 4 . Max Kills in Single Turn 1 | . 1 1 1 Gunslinging . | . . . . Exploded . | . . . . Melee . | . . . . Uniques/NPCs Destroyed . | . . . . Combat | -11 -10 -10 -7 -------- Run | Yrd Mat Sub Rec Hostile Shots Fired 170 | . 37 114 19 Missed 51 | . 6 40 5 Damage Taken 1825 | . 416 1194 215 Core 262 | . 68 149 45 Absorbed by Shields . | . . . . Core Remaining (%) 100 | 100 . . . Volleys Fired 101 | . 46 51 4 Largest 2 | . 2 2 1 Hottest 120 | . 40 120 120 Shots Fired 172 | . 92 76 4 Gun 142 | . 92 50 . Cannon 30 | . . 26 4 Launcher . | . . . . Special . | . . . . Kinetic 130 | . 92 38 . Thermal 42 | . . 38 4 Explosive . | . . . . Electromagnetic . | . . . . Robot Hit Streak 10 | . 9 10 . Robot Miss Streak 4 | . 3 4 4 Penetration Max . | . . . . Secondary Targets 2 | . 2 . . Max Gunslinging Chain 1 | . 1 . . Shots Hit Robots 113 | . 60 53 . Core Hits 48 | . 30 17 1 Critical Kills 1 | . . 1 . Critical Parts Destroyed . | . . . . Critical Strikes 1 | . . 1 . Meltdown 1 | . . 1 . Melee Attacks . | . . . . Impact . | . . . . Slashing . | . . . . Piercing . | . . . . Sneak Attacks . | . . . . Combat Hostiles . | . . . . Follow-up Attacks . | . . . . Damage Inflicted 2237 | . 757 1350 130 Guns 1347 | . 748 599 . Cannons 881 | . . 751 130 Explosions . | . . . . Melee . | . . . . Ramming 9 | . 9 . . Kinetic 1153 | . 748 405 . Thermal 1075 | . . 945 130 Explosive . | . . . . Electromagnetic . | . . . . Impact . | . . . . Slashing . | . . . . Piercing . | . . . . Highest Corruption 1 | . 1 1 1 Average Corruption 1 | . 1 1 1 Corruption Purged . | . . . . Corruption Blocked . | . . . . Effects 5 | . 2 3 . Message Errors 2 | . . 2 . Matter Fused 1 | . 1 . . Parts Fused 1 | . . 1 . Data Loss (minor) 1 | . 1 . . Overload Shots 5 | . . 4 1 Effects 1 | . . . 1 Energy Bleed 1 | . . . 1 Overflow Damage 143 | . . 123 20 Projectiles 143 | . . 123 20 Explosions . | . . . . Melee . | . . . . Knockbacks . | . . . . Impact . | . . . . Kinetic . | . . . . Secondary . | . . . . Self-Inflicted Damage . | . . . . Shots . | . . . . Rammed . | . . . . Targets Rammed 1 | . 1 . . Kicked . | . . . . Crushed 1 | . 1 . . Highest Temperature 248 | . 43 248 160 Average Temperature 44 | . 17 60 138 Received Heat Transfer 594 | . 225 369 . Siege Activations . | . . . . Robots Corrupted . | . . . . Combat Hostiles . | . . . . Parts Fried . | . . . . Impact Corruptions . | . . . . Robots Melted 1 | . . 1 . Combat Hostiles 1 | . . 1 . Parts Melted 5 | . . 5 . Heat Transferred 225 | . . 225 . Parts Sabotaged . | . . . . Parts Stolen . | . . . . Parts Stripped . | . . . . Power Chain Reactions . | . . . . Alert | -11 -10 -10 -7 ------- Run | Yrd Mat Sub Rec Peak Influence 273 | . 173 . 273 Initial 268 | . . . 268 Average 75 | . 36 . 268 Maximum Alert Level 1 | . . . 1 Low Security (%) 83 | 100 100 . . Level 1 16 | . . . 100 Level 2 . | . . . . Level 3 . | . . . . Level 4 . | . . . . Level 5 . | . . . . High Security . | . . . . Max Security . | . . . . Squads Dispatched 1 | . 1 . . Investigation . | . . . . Extermination . | . . . . Reinforcement 1 | . 1 . . Assault . | . . . . Garrison . | . . . . Intercept . | . . . . Searches Triggered . | . . . . Construction Impeded . | . . . . Haulers Reinforced . | . . . . Active Scanning Responses . | . . . . Cargo Convoy Interrupts . | . . . . Stealth | -11 -10 -10 -7 --------- Run | Yrd Mat Sub Rec Distress Signals 2 | . 2 . . Communications Jammed . | . . . . Distress Signals . | . . . . Times Spotted 48 | . 15 31 2 Peak Tracking Total 4 | . 3 4 2 Tactical Retreats 4 | . . 4 . Traps | -11 -10 -10 -7 ------- Run | Yrd Mat Sub Rec Traps Triggered 1 | . 1 . . Indirectly . | . . . . Trap Hack Attempts . | . . . . Triggered . | . . . . Disarmed . | . . . . Reprogrammed . | . . . . Reused . | . . . . Traps Extracted . | . . . . Installed . | . . . . Triggered . | . . . . Machines | -11 -10 -10 -7 ---------- Run | Yrd Mat Sub Rec Machines Disabled 1 | . . 1 . Max in Single Turn 1 | . . 1 . Machines Repaired . | . . . . Machines Dismantled . | . . . . Machines Sabotaged . | . . . . Overloaded Fab Kills . | . . . . Hacking | -11 -10 -10 -7 --------- Run | Yrd Mat Sub Rec Machines Accessed 6 | . 5 . 1 Terminals 6 | . 5 . 1 Fabricators . | . . . . Repair Stations . | . . . . Recycling Units . | . . . . Scanalyzers . | . . . . Garrison Access . | . . . . Total Hacks 16 | . 15 . 1 Successful 3 | . 3 . . Failed 13 | . 12 . 1 Catastrophic 5 | . 4 . 1 Database Lockouts . | . . . . Manual 7 | . 7 . . Terminals 16 | . 15 . 1 Fabricators . | . . . . Repair Stations . | . . . . Recycling Units . | . . . . Scanalyzers . | . . . . Garrison Access . | . . . . Terminal Hacks 2 | . 2 . . Branch Access Points 1 | . 1 . . Locate Traps 1 | . 1 . . Fabricator Hacks . | . . . . Repair Station Hacks . | . . . . Recycling Unit Hacks . | . . . . Scanalyzer . | . . . . Garrison Access Hacks . | . . . . Unauthorized Hacks 1 | . 1 . . Terminals 1 | . 1 . . Operators 1 | . 1 . . Fabricators . | . . . . Repair Stations . | . . . . Recycling Units . | . . . . Scanalyzers . | . . . . Garrison Access . | . . . . Data Cores Recovered . | . . . . Used . | . . . . Hacking Detections 6 | . 5 . 1 Full Trace Events 2 | . 2 . . Feedback Events . | . . . . Feedback Blocked . | . . . . Robot Schematics Acquired . | . . . . Robots Built . | . . . . Authchips . | . . . . Time . | . . . . Total Robot Build Rating . | . . . . Part Schematics Acquired . | . . . . Parts Built . | . . . . Authchips . | . . . . Time . | . . . . Total Part Build Rating . | . . . . Parts Repaired . | . . . . Time . | . . . . Parts Recycled . | . . . . Recycled Matter . | . . . . Retrieved Matter . | . . . . Retrieved Components . | . . . . Parts Scanalyzed . | . . . . Part Schematics Acquired . | . . . . Parts Damaged . | . . . . Bothacking | -11 -10 -10 -7 ------------ Run | Yrd Mat Sub Rec Used RIF Installer . | . . . . Robots Hacked . | . . . . Non-combat . | . . . . Combat . | . . . . Robot Hacks Applied . | . . . . Relay Couplers Released . | . . . . Fabnet Peak Effective % . | . . . . Robots Rewired 1 | . . . 1 Allies Hacked . | . . . . Hacks Repelled . | . . . . Allies | -11 -10 -10 -7 -------- Run | Yrd Mat Sub Rec Total Allies 1 | . . . 1 Largest Group . | . . . . Highest-Rated Group . | . . . . Highest-Rated Ally . | . . . . Total Orders . | . . . . Ally Attacks 2 | . . . 2 Total Damage 18 | . . . 18 Kills . | . . . . Allies Corrupted . | . . . . Allies Melted . | . . . . Intel | -11 -10 -10 -7 ------- Run | Yrd Mat Sub Rec Robot Analysis Total . | . . . . Derelict Logs Recovered 2 | . . 2 . Drone Launches . | . . . . Drone Recoveries . | . . . . Exploration | -11 -10 -10 -7 ------------- Run | Yrd Mat Sub Rec Turns Passed 2962 | 31 1817 737 377 Spaces Moved 1225 | 38 628 342 217 Core 37 | 37 . . . Treads 1188 | 1 628 342 217 Legs . | . . . . Wheels . | . . . . Hover . | . . . . Flight . | . . . . Fastest Speed 50 | 50 160 160 160 Average Speed 157 | 52 160 164 160 Slowest Speed 240 | 160 160 240 160 Overloaded Moves . | . . . . Propulsion Burnouts . | . . . . Robots Hopped . | . . . . Cave-ins Triggered . | . . . . Exploration Rate (%) 40 | 4 87 25 44 Regions Visited 3 Branch Regions 2 Pre-discovered Areas 3 | . . 3 . Known Exits Taken . | . . . . Unknown Exits Taken 3 | 1 1 1 . Scrap Searched 2 | . . 2 . Spaces Dug . | . . . . Terrain Destroyed 11 | . . 10 1 Melee . | . . . . Projectile 11 | . . 10 1 AOE . | . . . . Terrain Rammed . | . . . . Walls Destroyed . | . . . . Machines Disabled . | . . . . Actions | -11 -10 -10 -7 --------- Run | Yrd Mat Sub Rec Total 2093 | 48 1351 449 245 Wait 698 | . 644 36 18 Move 1222 | 37 627 341 217 Hop . | . . . . Pick Up 30 | 5 17 7 1 Fast Attach 1 | 1 . . . Attach 15 | 5 1 9 . Detach . | . . . . Swap 6 | . 6 . . Drop 13 | . 9 4 . Fire 101 | . 46 51 4 Melee . | . . . . Ram . | . . . . Kick . | . . . . Crush 1 | . 1 . . Escape Stasis . | . . . . Rewire 6 | . . 1 5 Trap . | . . . . Miscellaneous . | . . . . Route ------- -11/Scrapyard -10/Materials (discovered 5 exits: [*Mat x3] / *Min / [*Sub]) -10/Subcaves (discovered 2 exits: [*Mat] / *Rec) -7/Recycling History --------- Turn | Location | Event 11 | -11/Scrapyard | Discovered new exit (range 15) 32 | -11/Scrapyard | Entered Materials 277 | -10/Materials | Discovered new exit (range 8) 302 | -10/Materials | Build established: Mutant 334 | -10/Materials | Identified exit to Mines 675 | -10/Materials | Discovered new exit (range 13) 1431 | -10/Materials | Discovered new exit (range 7) 1626 | -10/Materials | Discovered new exit (range 3) 1849 | -10/Materials | Entered Subcaves 1913 | -10/Subcaves | Discovered new exit (range 15) 1976 | -10/Subcaves | Learned location of Zion (-7) 2076 | -10/Subcaves | Shifting Twisted Machinery released Sub. Power Source 2076 | -10/Subcaves | Shifting Twisted Machinery released Barrage Gun 2105 | -10/Subcaves | Met a Zionite searching for "candidates" 2212 | -10/Subcaves | Learned location of Recycling (-7) 2332 | -10/Subcaves | A Subdweller sparked back to life 2332 | -10/Subcaves | A Subdweller sparked back to life 2332 | -10/Subcaves | A Subdweller sparked back to life 2335 | -10/Subcaves | Core integrity fell below 50% 2369 | -10/Subcaves | Found Prototype Energy Cannon 2370 | -10/Subcaves | Identified Powered Cannon 2371 | -10/Subcaves | Attached Powered Cannon, gained temporary slot: Power 2387 | -10/Subcaves | Lost 3 parts (1n2u) 2510 | -10/Subcaves | Discovered new exit (range 14) 2548 | -10/Subcaves | Core integrity fell below 20% 2586 | -10/Subcaves | Entered Recycling 2586 | -7/Recycling | Found Scrap Engine 2963 | -7/Recycling | Destroyed by S-27 Virus with Autogun Last Messages --------------- 02541_ Machine disabled. 02565_ Autobeam Turret destroyed. 02569_ Autobeam fries itself beyond repair. A mysterious object appears at your location! LOCATION=UNKNOWN GOAL=ESCAPE 02586_ Acquired Scrap Engine. 02615_ Connecting with Terminal... 02615_ Current location identified: Recycling 02948_ P-60 Hacker springs to life. 02948_ S-27 Virus springs to life. 02951_ Attempting to rewire G-47 Trooper. 02952_ U-05 Engineer destroyed. 02952_ Attempting to rewire G-47 Trooper. 02955_ G-47 Trooper rewired. 02955_ H-55 Commando destroyed. 02958_ Overload: Energy bleed (-111). 02958_ Trooper 4a destroyed. 02959_ Destroyed Com. Wheel. 02962_ R-06 Scavenger collects Lgt. Ion Engine. Map ----- +----------------------------------------------------+ | + """"" #?????#"""#??# ""#???????????????????? | | #################"Y"#### Y"#???????????????????? | | ""#???????????????????? | | ######### ####### ###???????????????????? | | #########+#####?# #?????????????????????? | | # """ #?# #?????????????????????? | | # "Y" #?# ######?????????????????????? | | + #?# #??????????????????????????? | | # ### #??????????????????????????? | | ###########+###!! #??????????????????????????? | | #?????????# #?#!! #??????????????????????????? | | #?????????# #?#!! #??????????????????????????? | | #?????????# #?### #??????????????????????????? | | #?????????# #???# #??????????????????????????? | | #?????????# #???# #??????????????????????????? | | #?????????# #???# #??????????????????????????? | | #?????????# #???# #??????????????????????????? | | +?????????# ##### #??????????????????????????? | | #?????????# #??????????????????????????? | | #?????????# #??????????????????????????? | | #?????????# """"" #??????????????????????????? | | ?????????# """"" ###??????#?????????????????? | | [?????????# """"" ""######;##########????????? | | ??????????# """"" ""# !| ! [ia ????????? | | ??????????# """"" T"# b% p% ???????? | | ????####### """"" ""#@ ! s r ???????? | | #???# """"" ""#!=% ! ???????? | | #???# #?#]%[ t Yu %=???????? | | #???# ### r Y r ???????? | | #???# ## ! b% ???????? | | #####+############## ## r| Y ???????? | | # #????????# ##+#########+#####????????? | | # #????????# #???????????? | | # #????????#+##########????????????????? | | # #???????# ????????????????????????? | | # #???????# "??????????????????????? | | # #???????# "T"????????????????????? | | + #??????# ???????????????????? | | # ##??????# """ """ #??????????????????? | | ### #######???????# """ """ #??????????????????? | | #?###???????#####?# """ """ #??????????????????? | | ##??????????#"""#?# ????????????????????? | | ############"Y"##########+#### ??????????????? | | ?????????????? | | ?????????????? | | ?????????????? | | #####+############+##### #????????????????????? | | ####?# #??# #????????????????????????? | | ?????# #??# #????????????????????????? | | ?????# #?# #????????????????????????? | +----------------------------------------------------+ Best States ------------- Heat Dissipation 25 Energy Generation 25 Energy Capacity 300 Matter Stores 300 Matter Capacity 300 Sight Range 16 Terrain Scan Density 10 Armor Coverage 225 Evasion (%) 50 Recoil Reduction 2 Item Schematics ----------------- None Robot Schematics ------------------ None Fabricated ------------ Nothing Alien Tech Used ----------------- None Achievements -------------- None Challenges ------------ None Game ------ Seed BombardmentBoreBarrier Manual? 0 Play Time 00:13:12 Cumulative 52.1 hours Start 2024.07.31 @ 22:50:00 End 2024.07.31 @ 23:01:39 Sessions 1 Manual Loads 0 Difficulty Rogue Special Mode None Game No. 97 Rogue 96 Adventurer 1 Explorer 0 Win Type - Total 0 Types 0/0/0/0/0/0/0/0/0 Lore% 27 Gallery% 43 Achievement% 36 Wizard Run 0 Options --------- Layout 2 ASCII 0 Keyboard 0 Movement Mouse Keybinds 0 Fullscreen 1 Font 48/Smallcaps Map View 50x44 Zoom Use 0% Tactical HUD 1 Map Filters NONE Filters NONE Steam 1 RUN: 0a48fa92-47a0-4944-9d65-b867056bc20c